[Event "Titled Tuesday Blitz April 11 Early 2023"]
[White "Averjanov, Alexey"]
[Black "Kumala, Aleksander"]
[WhiteFideId "14109867"]
[BlackFideId "1141880"]
[WhiteElo "2730"]
[BlackElo "2269"]
[Result "1/2-1/2"]
[Round "09"]
[TimeControl "180+2"]
[Date "2023.04.11"]
[WhiteClock "0:01:04"]
[BlackClock "0:00:28"]

1. d4 {[%clk 0:03:00]}  Nf6 {[%clk 0:03:00]} 2. c4 {[%clk 0:03:00]}  Nc6 {[%clk 0:03:00]} 3. Nf3 {[%clk 0:03:00]}  e6 {[%clk 0:03:00]} 4. g3 {[%clk 0:03:00]}  Bb4+ {[%clk 0:03:00]} 5. Nbd2 {[%clk 0:03:01]}  d6 {[%clk 0:03:00]} 6. Bg2 {[%clk 0:03:00]}  Qe7 {[%clk 0:02:58]} 7. O-O {[%clk 0:03:00]}  Bxd2 {[%clk 0:02:58]} 8. Qxd2 {[%clk 0:03:00]}  e5 {[%clk 0:02:59]} 9. b3 {[%clk 0:03:00]}  O-O {[%clk 0:02:57]} 10. Bb2 {[%clk 0:02:59]}  exd4 {[%clk 0:02:55]} 11. Nxd4 {[%clk 0:02:59]}  Bd7 {[%clk 0:02:54]} 12. e3 {[%clk 0:02:57]}  Ne4 {[%clk 0:02:51]} 13. Qc2 {[%clk 0:02:55]}  Rfe8 {[%clk 0:02:50]} 14. a3 {[%clk 0:02:52]}  Nxd4 {[%clk 0:02:43]} 15. Bxd4 {[%clk 0:02:52]}  Bf5 {[%clk 0:02:41]} 16. Qb2 {[%clk 0:02:46]}  f6 {[%clk 0:02:29]} 17. f3 {[%clk 0:02:47]}  Nc5 {[%clk 0:02:25]} 18. e4 {[%clk 0:02:45]}  Be6 {[%clk 0:02:19]} 19. Rad1 {[%clk 0:02:45]}  a5 {[%clk 0:02:14]} 20. Rfe1 {[%clk 0:02:42]}  Qf7 {[%clk 0:02:14]} 21. Bf1 {[%clk 0:02:40]}  Qh5 {[%clk 0:02:10]} 22. Re3 {[%clk 0:02:37]}  b6 {[%clk 0:02:02]} 23. Qc2 {[%clk 0:02:31]}  Rad8 {[%clk 0:01:55]} 24. Ba1 {[%clk 0:02:25]}  Qh6 {[%clk 0:01:53]} 25. Ree1 {[%clk 0:02:24]}  Qh5 {[%clk 0:01:52]} 26. Bg2 {[%clk 0:02:15]}  Qf7 {[%clk 0:01:49]} 27. b4 {[%clk 0:02:12]}  axb4 {[%clk 0:01:47]} 28. axb4 {[%clk 0:02:13]}  Nd7 {[%clk 0:01:47]} 29. Bf1 {[%clk 0:02:11]}  Ra8 {[%clk 0:01:46]} 30. Bd4 {[%clk 0:02:07]}  Ne5 {[%clk 0:01:46]} 31. Bxe5 {[%clk 0:01:53]}  fxe5 {[%clk 0:01:46]} 32. Be2 {[%clk 0:01:52]}  Rf8 {[%clk 0:01:43]} 33. Ra1 {[%clk 0:01:50]}  Qg6 {[%clk 0:01:39]} 34. Qb2 {[%clk 0:01:43]}  Qg5 {[%clk 0:01:37]} 35. Qc3 {[%clk 0:01:39]}  h5 {[%clk 0:01:36]} 36. Rxa8 {[%clk 0:01:29]}  Rxa8 {[%clk 0:01:35]} 37. Kf2 {[%clk 0:01:25]}  h4 {[%clk 0:01:35]} 38. Ra1 {[%clk 0:01:23]}  Rxa1 {[%clk 0:01:23]} 39. Qxa1 {[%clk 0:01:23]}  Qd2 {[%clk 0:01:22]} 40. Qa8+ {[%clk 0:01:11]}  Kf7 {[%clk 0:01:14]} 41. Qd8 {[%clk 0:01:07]}  Qd4+ {[%clk 0:01:09]} 42. Kg2 {[%clk 0:01:05]}  h3+ {[%clk 0:01:08]} 43. Kf1 {[%clk 0:01:04]}  Qa1+ {[%clk 0:00:38]} 44. Kf2 {[%clk 0:01:04]}  Qd4+ {[%clk 0:00:29]} 45. Kf1 {[%clk 0:01:04]}  Qa1+ {[%clk 0:00:29]} 46. Kf2 {[%clk 0:01:04]}  Qd4+ {[%clk 0:00:28]} 47. Kf1 {[%clk 0:01:04]} 1/2-1/2


[Site "https://www.chess.com"]

[Event "Titled Tuesday Blitz April 11 Early 2023"]
[White "Odegov, Artem"]
[Black "Korchmar, Vasiliy"]
[WhiteFideId "34183644"]
[BlackFideId "24131750"]
[WhiteElo "2300"]
[BlackElo "2370"]
[Result "1-0"]
[Round "09"]
[TimeControl "180+2"]
[Date "2023.04.11"]
[WhiteClock "0:00:07"]
[BlackClock "0:00:03"]

1. d4 {[%clk 0:03:00]}  d5 {[%clk 0:02:59]} 2. c4 {[%clk 0:03:01]}  c6 {[%clk 0:03:00]} 3. Nc3 {[%clk 0:03:01]}  Nf6 {[%clk 0:03:00]} 4. Nf3 {[%clk 0:03:02]}  e6 {[%clk 0:02:59]} 5. Bg5 {[%clk 0:03:01]}  Be7 {[%clk 0:02:58]} 6. e3 {[%clk 0:03:01]}  O-O {[%clk 0:02:57]} 7. Qc2 {[%clk 0:03:01]}  Nbd7 {[%clk 0:02:55]} 8. Rd1 {[%clk 0:03:01]}  h6 {[%clk 0:02:50]} 9. h4 {[%clk 0:03:00]}  dxc4 {[%clk 0:02:30]} 10. Bxc4 {[%clk 0:02:58]}  b5 {[%clk 0:02:29]} 11. Bd3 {[%clk 0:02:58]}  b4 {[%clk 0:02:27]} 12. Ne2 {[%clk 0:02:58]}  Qa5 {[%clk 0:02:22]} 13. b3 {[%clk 0:02:55]}  c5 {[%clk 0:02:15]} 14. Bf4 {[%clk 0:02:41]}  Ba6 {[%clk 0:02:10]} 15. O-O {[%clk 0:02:26]}  Rac8 {[%clk 0:02:07]} 16. Bxa6 {[%clk 0:02:00]}  Qxa6 {[%clk 0:02:08]} 17. Qb2 {[%clk 0:02:00]}  Nd5 {[%clk 0:02:03]} 18. Bg3 {[%clk 0:02:00]}  Bf6 {[%clk 0:01:56]} 19. Rc1 {[%clk 0:01:53]}  cxd4 {[%clk 0:01:53]} 20. Nexd4 {[%clk 0:01:45]}  Nc5 {[%clk 0:01:52]} 21. Qe2 {[%clk 0:01:23]}  Qxe2 {[%clk 0:01:30]} 22. Nxe2 {[%clk 0:01:23]}  Ne4 {[%clk 0:01:31]} 23. Be5 {[%clk 0:01:19]}  Bxe5 {[%clk 0:01:22]} 24. Nxe5 {[%clk 0:01:20]}  Ndc3 {[%clk 0:01:22]} 25. Nxc3 {[%clk 0:01:20]}  Nxc3 {[%clk 0:01:22]} 26. Rc2 {[%clk 0:01:19]}  Rfd8 {[%clk 0:01:21]} 27. Nc4 {[%clk 0:01:19]}  Rd5 {[%clk 0:01:12]} 28. a3 {[%clk 0:01:09]}  Ne4 {[%clk 0:01:10]} 29. axb4 {[%clk 0:01:07]}  Rb5 {[%clk 0:01:10]} 30. Na3 {[%clk 0:00:49]}  Rxc2 {[%clk 0:01:02]} 31. Nxc2 {[%clk 0:00:50]}  Rd5 {[%clk 0:01:03]} 32. Nd4 {[%clk 0:00:45]}  e5 {[%clk 0:01:01]} 33. Nc6 {[%clk 0:00:44]}  Rb5 {[%clk 0:00:46]} 34. Rc1 {[%clk 0:00:37]}  f6 {[%clk 0:00:39]} 35. Rc4 {[%clk 0:00:30]}  Nd6 {[%clk 0:00:33]} 36. Rc5 {[%clk 0:00:31]}  Rb7 {[%clk 0:00:31]} 37. f3 {[%clk 0:00:27]}  Nf5 {[%clk 0:00:29]} 38. e4 {[%clk 0:00:26]}  Nxh4 {[%clk 0:00:29]} 39. Ra5 {[%clk 0:00:25]}  Rd7 {[%clk 0:00:18]} 40. Rd5 {[%clk 0:00:17]}  Rb7 {[%clk 0:00:14]} 41. Ra5 {[%clk 0:00:14]}  Rd7 {[%clk 0:00:14]} 42. Rd5 {[%clk 0:00:10]}  Rc7 {[%clk 0:00:14]} 43. b5 {[%clk 0:00:09]}  Ng6 {[%clk 0:00:11]} 44. Rd8+ {[%clk 0:00:07]}  Kh7 {[%clk 0:00:09]} 45. Ra8 {[%clk 0:00:08]}  Rd7 {[%clk 0:00:02]} 46. Rxa7 {[%clk 0:00:08]}  Rd3 {[%clk 0:00:03]} 47. b6 {[%clk 0:00:07]}  Rxb3 {[%clk 0:00:03]} 48. b7 {[%clk 0:00:07]}  Rb1+ {[%clk 0:00:02]} 49. Kf2 {[%clk 0:00:07]}  Nf4 {[%clk 0:00:03]} 50. b8=Q {[%clk 0:00:07]} 1-0


[Site "https://www.chess.com"]

[Event "Titled Tuesday Blitz April 11 Early 2023"]
[White "Kosteniuk, Alexandra"]
[Black "Grot, Blazej"]
[WhiteFideId "4128125"]
[BlackFideId "21835845"]
[WhiteElo "2453"]
[BlackElo "1823"]
[Result "1/2-1/2"]
[Round "09"]
[TimeControl "180+2"]
[Date "2023.04.11"]
[WhiteClock "0:01:00"]
[BlackClock "0:01:42"]

1. f4 {[%clk 0:03:00]}  d6 {[%clk 0:02:52]} 2. Nf3 {[%clk 0:03:00]}  Nd7 {[%clk 0:02:47]} 3. e4 {[%clk 0:02:57]}  e5 {[%clk 0:02:46]} 4. Bc4 {[%clk 0:02:57]}  Ngf6 {[%clk 0:02:38]} 5. O-O {[%clk 0:02:44]}  c6 {[%clk 0:02:35]} 6. d4 {[%clk 0:02:42]}  exd4 {[%clk 0:02:30]} 7. e5 {[%clk 0:02:37]}  dxe5 {[%clk 0:02:26]} 8. fxe5 {[%clk 0:02:38]}  Nd5 {[%clk 0:02:25]} 9. Bxd5 {[%clk 0:02:10]}  cxd5 {[%clk 0:02:25]} 10. e6 {[%clk 0:02:09]}  fxe6 {[%clk 0:02:22]} 11. Nxd4 {[%clk 0:02:04]}  Nf6 {[%clk 0:02:17]} 12. Bg5 {[%clk 0:01:52]}  Bc5 {[%clk 0:02:11]} 13. Bxf6 {[%clk 0:01:45]}  gxf6 {[%clk 0:02:12]} 14. Qh5+ {[%clk 0:01:22]}  Kf8 {[%clk 0:02:07]} 15. c3 {[%clk 0:01:20]}  Rg8 {[%clk 0:02:00]} 16. Qh6+ {[%clk 0:01:14]}  Rg7 {[%clk 0:01:56]} 17. Rxf6+ {[%clk 0:01:13]}  Kg8 {[%clk 0:01:54]} 18. Nd2 {[%clk 0:01:00]}  e5 {[%clk 0:01:48]} 19. Nb3 {[%clk 0:01:00]}  Be7 {[%clk 0:01:42]} 1/2-1/2


[Site "https://www.chess.com"]

[Event "Titled Tuesday Blitz April 11 Early 2023"]
[White "Jumanov, Elbek"]
[Black "Aldokhin, Ivan"]
[WhiteFideId "14202905"]
[BlackFideId "24115720"]
[WhiteElo "2055"]
[BlackElo "2322"]
[Result "1-0"]
[Round "09"]
[TimeControl "180+2"]
[Date "2023.04.11"]
[WhiteClock "0:01:02"]
[BlackClock "0:00:29"]

1. c4 {[%clk 0:03:00]}  Nf6 {[%clk 0:02:53]} 2. Nf3 {[%clk 0:03:00]}  g6 {[%clk 0:02:53]} 3. Nc3 {[%clk 0:02:59]}  Bg7 {[%clk 0:02:53]} 4. g3 {[%clk 0:02:59]}  d6 {[%clk 0:02:54]} 5. Bg2 {[%clk 0:02:59]}  O-O {[%clk 0:02:55]} 6. O-O {[%clk 0:02:59]}  Nc6 {[%clk 0:02:55]} 7. Rb1 {[%clk 0:02:59]}  a5 {[%clk 0:02:55]} 8. a3 {[%clk 0:02:59]}  e5 {[%clk 0:02:55]} 9. d3 {[%clk 0:02:58]}  Qe7 {[%clk 0:02:41]} 10. Bg5 {[%clk 0:02:55]}  h6 {[%clk 0:02:40]} 11. Nd5 {[%clk 0:02:51]}  Qd8 {[%clk 0:02:30]} 12. Nxf6+ {[%clk 0:02:48]}  Bxf6 {[%clk 0:02:30]} 13. Bxh6 {[%clk 0:02:48]}  Bg7 {[%clk 0:02:31]} 14. Bg5 {[%clk 0:02:42]}  f6 {[%clk 0:02:30]} 15. Bd2 {[%clk 0:02:40]}  f5 {[%clk 0:02:28]} 16. b4 {[%clk 0:02:39]}  axb4 {[%clk 0:02:27]} 17. axb4 {[%clk 0:02:38]}  Bf6 {[%clk 0:02:27]} 18. b5 {[%clk 0:02:37]}  Ne7 {[%clk 0:02:27]} 19. h4 {[%clk 0:02:32]}  f4 {[%clk 0:02:14]} 20. e4 {[%clk 0:02:28]}  fxe3 {[%clk 0:01:57]} 21. Bxe3 {[%clk 0:02:23]}  Bg4 {[%clk 0:01:57]} 22. Qd2 {[%clk 0:02:18]}  Bg7 {[%clk 0:01:51]} 23. Ng5 {[%clk 0:02:13]}  Qc8 {[%clk 0:01:46]} 24. f3 {[%clk 0:01:54]}  Bd7 {[%clk 0:01:43]} 25. f4 {[%clk 0:01:53]}  Nf5 {[%clk 0:01:37]} 26. Bd5+ {[%clk 0:01:50]}  Kh8 {[%clk 0:01:37]} 27. h5 {[%clk 0:01:38]}  Nxg3 {[%clk 0:01:18]} 28. hxg6 {[%clk 0:01:34]}  Nxf1 {[%clk 0:01:08]} 29. Rxf1 {[%clk 0:01:34]}  Bh6 {[%clk 0:01:04]} 30. Qh2 {[%clk 0:01:22]}  Kg7 {[%clk 0:01:02]} 31. f5 {[%clk 0:01:19]}  Rh8 {[%clk 0:00:29]} 32. f6+ {[%clk 0:01:04]}  Kxg6 {[%clk 0:00:29]} 33. Bf7# {[%clk 0:01:02]} 1-0


[Site "https://www.chess.com"]

[Event "Titled Tuesday Blitz April 11 Early 2023"]
[White "Petrov, Martin"]
[Black "ArtemDyachuk"]
[WhiteFideId "2911086"]
[WhiteElo "2430"]
[BlackElo "2428"]
[Result "1-0"]
[Round "09"]
[TimeControl "180+2"]
[Date "2023.04.11"]
[WhiteClock "0:00:24"]
[BlackClock "0:00:01"]

1. d4 {[%clk 0:03:00]}  Nf6 {[%clk 0:02:50]} 2. c4 {[%clk 0:02:59]}  c5 {[%clk 0:02:48]} 3. d5 {[%clk 0:02:58]}  e6 {[%clk 0:02:48]} 4. Nc3 {[%clk 0:02:56]}  exd5 {[%clk 0:02:46]} 5. cxd5 {[%clk 0:02:56]}  d6 {[%clk 0:02:47]} 6. e4 {[%clk 0:02:56]}  g6 {[%clk 0:02:47]} 7. f4 {[%clk 0:02:56]}  Bg7 {[%clk 0:02:46]} 8. Bb5+ {[%clk 0:02:56]}  Nfd7 {[%clk 0:02:28]} 9. a4 {[%clk 0:02:53]}  O-O {[%clk 0:02:27]} 10. Nf3 {[%clk 0:02:36]}  Re8 {[%clk 0:02:27]} 11. O-O {[%clk 0:02:35]}  Na6 {[%clk 0:02:06]} 12. Re1 {[%clk 0:02:27]}  Nb4 {[%clk 0:01:46]} 13. Be3 {[%clk 0:02:12]}  a6 {[%clk 0:01:33]} 14. Bf1 {[%clk 0:02:06]}  Nf6 {[%clk 0:01:30]} 15. Bf2 {[%clk 0:01:52]}  Ng4 {[%clk 0:01:27]} 16. Bh4 {[%clk 0:01:49]}  Qb6 {[%clk 0:01:24]} 17. a5 {[%clk 0:01:36]}  Qa7 {[%clk 0:01:20]} 18. Na4 {[%clk 0:01:34]}  c4+ {[%clk 0:01:08]} 19. Nb6 {[%clk 0:01:33]}  Bd7 {[%clk 0:00:39]} 20. Bxc4 {[%clk 0:00:54]}  Rac8 {[%clk 0:00:30]} 21. Qb3 {[%clk 0:00:53]}  Nc2 {[%clk 0:00:03]} 22. Qxc2 {[%clk 0:00:51]}  Bb5 {[%clk 0:00:04]} 23. b3 {[%clk 0:00:49]}  Bxa1 {[%clk 0:00:01]} 24. Rxa1 {[%clk 0:00:48]}  Rc5 {[%clk 0:00:01]} 25. Kh1 {[%clk 0:00:32]}  Bxc4 {[%clk 0:00:01]} 26. bxc4 {[%clk 0:00:32]}  f5 {[%clk 0:00:01]} 27. exf5 {[%clk 0:00:30]}  Ne3 {[%clk 0:00:02]} 28. Qd3 {[%clk 0:00:29]}  Nxc4 {[%clk 0:00:02]} 29. Nxc4 {[%clk 0:00:26]}  Rec8 {[%clk 0:00:01]} 30. Nfd2 {[%clk 0:00:24]} 1-0


[Site "https://www.chess.com"]

[Event "Titled Tuesday Blitz April 11 Early 2023"]
[White "Van Foreest, Machteld"]
[Black "Zarubitski, Viachaslau"]
[WhiteFideId "1051563"]
[BlackFideId "13509373"]
[WhiteElo "2018"]
[BlackElo "2284"]
[Result "0-1"]
[Round "09"]
[TimeControl "180+2"]
[Date "2023.04.11"]
[WhiteClock "0:02:08"]
[BlackClock "0:00:28"]

1. e4 {[%clk 0:03:00]}  e5 {[%clk 0:02:56]} 2. Nf3 {[%clk 0:03:00]}  Nf6 {[%clk 0:02:56]} 3. Nxe5 {[%clk 0:02:59]}  d6 {[%clk 0:02:56]} 4. Nf3 {[%clk 0:03:00]}  Nxe4 {[%clk 0:02:57]} 5. d3 {[%clk 0:02:58]}  Nf6 {[%clk 0:02:57]} 6. d4 {[%clk 0:02:59]}  d5 {[%clk 0:02:55]} 7. Bd3 {[%clk 0:02:56]}  Bd6 {[%clk 0:02:56]} 8. O-O {[%clk 0:02:56]}  O-O {[%clk 0:02:56]} 9. Bg5 {[%clk 0:02:56]}  h6 {[%clk 0:02:53]} 10. Bh4 {[%clk 0:02:56]}  Re8 {[%clk 0:02:47]} 11. Re1 {[%clk 0:02:53]}  Rxe1+ {[%clk 0:02:46]} 12. Qxe1 {[%clk 0:02:54]}  Nc6 {[%clk 0:02:44]} 13. Nc3 {[%clk 0:02:50]}  Be6 {[%clk 0:02:35]} 14. Qe3 {[%clk 0:02:45]}  Be7 {[%clk 0:02:03]} 15. Re1 {[%clk 0:02:34]}  Ng4 {[%clk 0:01:54]} 16. Bxe7 {[%clk 0:02:34]}  Qxe7 {[%clk 0:01:46]} 17. Qf4 {[%clk 0:02:33]}  Qf6 {[%clk 0:01:25]} 18. Qxc7 {[%clk 0:02:11]}  Nxd4 {[%clk 0:00:34]} 19. Qxb7 {[%clk 0:02:09]}  Rd8 {[%clk 0:00:29]} 20. Nxd4 {[%clk 0:02:08]}  Qxf2+ {[%clk 0:00:28]} 0-1


[Site "https://www.chess.com"]

[Event "Titled Tuesday Blitz April 11 Early 2023"]
[White "Arat, Ufuk Sezen"]
[Black "Itgelt, Khuyagtsogt"]
[WhiteFideId "6309089"]
[BlackFideId "4902912"]
[WhiteElo "2289"]
[BlackElo "2227"]
[Result "0-1"]
[Round "09"]
[TimeControl "180+2"]
[Date "2023.04.11"]
[WhiteClock "0:00:02"]
[BlackClock "0:00:27"]

1. e4 {[%clk 0:02:59]}  d6 {[%clk 0:02:54]} 2. d4 {[%clk 0:02:59]}  Nf6 {[%clk 0:02:54]} 3. Nc3 {[%clk 0:02:59]}  c6 {[%clk 0:02:55]} 4. f4 {[%clk 0:02:59]}  Qa5 {[%clk 0:02:54]} 5. Bd3 {[%clk 0:02:58]}  e5 {[%clk 0:02:54]} 6. fxe5 {[%clk 0:02:57]}  dxe5 {[%clk 0:02:55]} 7. dxe5 {[%clk 0:02:58]}  Ng4 {[%clk 0:02:49]} 8. Nf3 {[%clk 0:02:56]}  Nxe5 {[%clk 0:02:49]} 9. Nxe5 {[%clk 0:02:54]}  Qxe5 {[%clk 0:02:49]} 10. O-O {[%clk 0:02:54]}  Be6 {[%clk 0:02:48]} 11. Bf4 {[%clk 0:02:54]}  Qc5+ {[%clk 0:02:46]} 12. Kh1 {[%clk 0:02:54]}  Nd7 {[%clk 0:02:45]} 13. Qe2 {[%clk 0:02:54]}  Be7 {[%clk 0:02:42]} 14. e5 {[%clk 0:02:50]}  Qb4 {[%clk 0:02:34]} 15. a3 {[%clk 0:02:36]}  Qxb2 {[%clk 0:02:25]} 16. Ne4 {[%clk 0:02:24]}  Nxe5 {[%clk 0:02:14]} 17. Rab1 {[%clk 0:02:12]}  Qd4 {[%clk 0:02:12]} 18. Rxb7 {[%clk 0:02:00]}  Nxd3 {[%clk 0:02:12]} 19. cxd3 {[%clk 0:01:57]}  h6 {[%clk 0:01:50]} 20. Be3 {[%clk 0:01:38]}  Qd5 {[%clk 0:01:33]} 21. Qb2 {[%clk 0:01:26]}  Qxd3 {[%clk 0:01:18]} 22. Rxe7+ {[%clk 0:01:18]}  Kxe7 {[%clk 0:01:17]} 23. Qb7+ {[%clk 0:01:00]}  Bd7 {[%clk 0:01:14]} 24. Re1 {[%clk 0:00:37]}  Rhb8 {[%clk 0:01:03]} 25. Bc5+ {[%clk 0:00:27]}  Kd8 {[%clk 0:01:03]} 26. Be7+ {[%clk 0:00:12]}  Kxe7 {[%clk 0:00:58]} 27. Nc5+ {[%clk 0:00:11]}  Kd8 {[%clk 0:00:44]} 28. Qxb8+ {[%clk 0:00:06]}  Rxb8 {[%clk 0:00:45]} 29. Nxd3 {[%clk 0:00:06]}  Be6 {[%clk 0:00:43]} 30. Nc5 {[%clk 0:00:06]}  Bd5 {[%clk 0:00:44]} 31. h3 {[%clk 0:00:02]}  Rb2 {[%clk 0:00:42]} 32. Rd1 {[%clk 0:00:03]}  Kc7 {[%clk 0:00:39]} 33. Na6+ {[%clk 0:00:03]}  Kb6 {[%clk 0:00:37]} 34. Nb4 {[%clk 0:00:04]}  Bxg2+ {[%clk 0:00:37]} 35. Kg1 {[%clk 0:00:05]}  Be4 {[%clk 0:00:35]} 36. Rd7 {[%clk 0:00:05]}  a5 {[%clk 0:00:30]} 37. Rd8 {[%clk 0:00:01]}  axb4 {[%clk 0:00:27]} 38. axb4 {[%clk 0:00:02]}  Rxb4 {[%clk 0:00:27]} 0-1


[Site "https://www.chess.com"]

[Event "Titled Tuesday Blitz April 11 Early 2023"]
[White "Demchenko, Anton"]
[Black "Ambartsumova, Karina"]
[WhiteFideId "4160258"]
[BlackFideId "4166299"]
[WhiteElo "2545"]
[BlackElo "2240"]
[Result "1-0"]
[Round "09"]
[TimeControl "180+2"]
[Date "2023.04.11"]
[WhiteClock "0:00:13"]
[BlackClock "0:00:03"]

1. e4 {[%clk 0:02:54]}  e5 {[%clk 0:02:10]} 2. Nf3 {[%clk 0:02:51]}  Nc6 {[%clk 0:02:09]} 3. Bc4 {[%clk 0:02:50]}  Nf6 {[%clk 0:02:07]} 4. d3 {[%clk 0:02:50]}  h6 {[%clk 0:02:04]} 5. c3 {[%clk 0:02:49]}  d6 {[%clk 0:01:59]} 6. a4 {[%clk 0:02:48]}  g5 {[%clk 0:01:56]} 7. a5 {[%clk 0:02:48]}  a6 {[%clk 0:01:56]} 8. Qb3 {[%clk 0:02:48]}  Qe7 {[%clk 0:01:55]} 9. Nbd2 {[%clk 0:02:46]}  Bg7 {[%clk 0:01:55]} 10. Nf1 {[%clk 0:02:44]}  O-O {[%clk 0:01:55]} 11. Ng3 {[%clk 0:02:31]}  Nd8 {[%clk 0:01:55]} 12. O-O {[%clk 0:02:18]}  c6 {[%clk 0:01:54]} 13. d4 {[%clk 0:02:03]}  Nxe4 {[%clk 0:01:11]} 14. Nxe4 {[%clk 0:01:24]}  d5 {[%clk 0:01:12]} 15. Bxd5 {[%clk 0:01:25]}  cxd5 {[%clk 0:01:13]} 16. Qxd5 {[%clk 0:01:25]}  Be6 {[%clk 0:00:43]} 17. Qc5 {[%clk 0:01:25]}  Qxc5 {[%clk 0:00:43]} 18. Nxc5 {[%clk 0:01:25]}  exd4 {[%clk 0:00:44]} 19. Nxd4 {[%clk 0:01:21]}  Bxd4 {[%clk 0:00:24]} 20. cxd4 {[%clk 0:01:22]}  Bc4 {[%clk 0:00:24]} 21. Rd1 {[%clk 0:01:14]}  Re8 {[%clk 0:00:20]} 22. Be3 {[%clk 0:01:02]}  Rc8 {[%clk 0:00:20]} 23. Nd7 {[%clk 0:01:02]}  Rc6 {[%clk 0:00:09]} 24. d5 {[%clk 0:01:00]}  Rg6 {[%clk 0:00:09]} 25. Nb6 {[%clk 0:01:01]}  Bb5 {[%clk 0:00:09]} 26. Rac1 {[%clk 0:01:00]}  f5 {[%clk 0:00:08]} 27. Rc8 {[%clk 0:00:49]}  Nf7 {[%clk 0:00:06]} 28. Rxe8+ {[%clk 0:00:42]}  Bxe8 {[%clk 0:00:07]} 29. Bc5 {[%clk 0:00:43]}  Nd6 {[%clk 0:00:06]} 30. f3 {[%clk 0:00:38]}  Bf7 {[%clk 0:00:05]} 31. b4 {[%clk 0:00:35]}  f4 {[%clk 0:00:05]} 32. Kf2 {[%clk 0:00:33]}  h5 {[%clk 0:00:05]} 33. Re1 {[%clk 0:00:32]}  g4 {[%clk 0:00:05]} 34. Re7 {[%clk 0:00:32]}  g3+ {[%clk 0:00:06]} 35. Kg1 {[%clk 0:00:26]}  Nf5 {[%clk 0:00:03]} 36. Rxb7 {[%clk 0:00:25]}  gxh2+ {[%clk 0:00:03]} 37. Kxh2 {[%clk 0:00:25]}  Nh4 {[%clk 0:00:03]} 38. Rb8+ {[%clk 0:00:13]}  Kh7 {[%clk 0:00:03]} 39. Bd4 {[%clk 0:00:13]} 1-0


[Site "https://www.chess.com"]

[Event "Titled Tuesday Blitz April 11 Early 2023"]
[White "Jeet, Jain"]
[Black "Cornette, Matthieu"]
[WhiteFideId "5073022"]
[BlackFideId "620084"]
[WhiteElo "2067"]
[BlackElo "2478"]
[Result "0-1"]
[Round "09"]
[TimeControl "180+2"]
[Date "2023.04.11"]
[WhiteClock "0:00:13"]
[BlackClock "0:01:06"]

1. Nf3 {[%clk 0:02:34]}  Nf6 {[%clk 0:03:00]} 2. b3 {[%clk 0:02:32]}  g6 {[%clk 0:03:00]} 3. Bb2 {[%clk 0:02:33]}  Bg7 {[%clk 0:03:01]} 4. c4 {[%clk 0:02:32]}  d6 {[%clk 0:03:01]} 5. e3 {[%clk 0:02:32]}  e5 {[%clk 0:03:00]} 6. d4 {[%clk 0:02:29]}  e4 {[%clk 0:02:58]} 7. Nfd2 {[%clk 0:02:29]}  O-O {[%clk 0:02:59]} 8. Nc3 {[%clk 0:02:29]}  Re8 {[%clk 0:02:58]} 9. h3 {[%clk 0:02:26]}  h5 {[%clk 0:02:58]} 10. g3 {[%clk 0:02:25]}  Nc6 {[%clk 0:02:52]} 11. Bg2 {[%clk 0:02:24]}  Bf5 {[%clk 0:02:45]} 12. a3 {[%clk 0:02:22]}  Qd7 {[%clk 0:02:35]} 13. Qc2 {[%clk 0:02:21]}  Re7 {[%clk 0:01:54]} 14. Ndxe4 {[%clk 0:02:14]}  Nxe4 {[%clk 0:01:50]} 15. Bxe4 {[%clk 0:02:13]}  Bxe4 {[%clk 0:01:44]} 16. Nxe4 {[%clk 0:02:12]}  Qf5 {[%clk 0:01:39]} 17. O-O-O {[%clk 0:00:17]}  Qxe4 {[%clk 0:01:36]} 18. Qc3 {[%clk 0:00:17]}  Qf3 {[%clk 0:01:29]} 19. Rhf1 {[%clk 0:00:16]}  Re4 {[%clk 0:01:28]} 20. b4 {[%clk 0:00:15]}  a5 {[%clk 0:01:27]} 21. b5 {[%clk 0:00:15]}  Ne7 {[%clk 0:01:28]} 22. a4 {[%clk 0:00:16]}  c5 {[%clk 0:01:27]} 23. bxc6 {[%clk 0:00:14]}  bxc6 {[%clk 0:01:22]} 24. Qa3 {[%clk 0:00:15]}  Rb8 {[%clk 0:01:14]} 25. Qxd6 {[%clk 0:00:14]}  Rb4 {[%clk 0:01:09]} 26. Qc5 {[%clk 0:00:13]}  Qe2 {[%clk 0:01:06]} 27. Rd2 {[%clk 0:00:13]}  Qxf1+ {[%clk 0:01:06]} 0-1


[Site "https://www.chess.com"]

[Event "Titled Tuesday Blitz April 11 Early 2023"]
[White "Ioannidis, Evgenios"]
[Black "slidingknight2775"]
[WhiteFideId "4229274"]
[WhiteElo "2386"]
[BlackElo "2582"]
[Result "1-0"]
[Round "09"]
[TimeControl "180+2"]
[Date "2023.04.11"]
[WhiteClock "0:01:43"]
[BlackClock "0:00:06"]

1. d4 {[%clk 0:02:54]}  Nf6 {[%clk 0:02:59]} 2. c4 {[%clk 0:02:54]}  e6 {[%clk 0:02:59]} 3. Nc3 {[%clk 0:02:54]}  Bb4 {[%clk 0:02:59]} 4. Qc2 {[%clk 0:02:55]}  O-O {[%clk 0:02:59]} 5. e4 {[%clk 0:02:56]}  d6 {[%clk 0:02:59]} 6. e5 {[%clk 0:02:55]}  dxe5 {[%clk 0:02:59]} 7. dxe5 {[%clk 0:02:56]}  Ng4 {[%clk 0:02:59]} 8. Nf3 {[%clk 0:02:52]}  Nc6 {[%clk 0:02:59]} 9. Bf4 {[%clk 0:02:53]}  f6 {[%clk 0:02:57]} 10. Rd1 {[%clk 0:02:51]}  Qe7 {[%clk 0:02:56]} 11. Bd3 {[%clk 0:02:51]}  g6 {[%clk 0:02:46]} 12. exf6 {[%clk 0:02:42]}  Qxf6 {[%clk 0:02:47]} 13. Bg3 {[%clk 0:02:42]}  Bxc3+ {[%clk 0:02:01]} 14. bxc3 {[%clk 0:02:42]}  Nge5 {[%clk 0:01:56]} 15. Nxe5 {[%clk 0:02:40]}  Nxe5 {[%clk 0:01:57]} 16. Be2 {[%clk 0:02:38]}  Bd7 {[%clk 0:01:10]} 17. f4 {[%clk 0:02:24]}  Bc6 {[%clk 0:00:44]} 18. fxe5 {[%clk 0:02:24]}  Qg5 {[%clk 0:00:45]} 19. Qd2 {[%clk 0:02:18]}  Qf5 {[%clk 0:00:40]} 20. Rf1 {[%clk 0:02:15]}  Qe4 {[%clk 0:00:39]} 21. Rf3 {[%clk 0:02:04]}  Rae8 {[%clk 0:00:18]} 22. Qd3 {[%clk 0:01:52]}  Qxd3 {[%clk 0:00:08]} 23. Rxf8+ {[%clk 0:01:52]}  Rxf8 {[%clk 0:00:08]} 24. Rxd3 {[%clk 0:01:52]}  Bxg2 {[%clk 0:00:08]} 25. Rd7 {[%clk 0:01:52]}  Bc6 {[%clk 0:00:08]} 26. Rxc7 {[%clk 0:01:52]}  a5 {[%clk 0:00:09]} 27. Re7 {[%clk 0:01:47]}  Rf5 {[%clk 0:00:07]} 28. Bg4 {[%clk 0:01:45]}  Rg5 {[%clk 0:00:06]} 29. Bxe6+ {[%clk 0:01:44]}  Kf8 {[%clk 0:00:06]} 30. Rxh7 {[%clk 0:01:43]} 1-0


[Site "https://www.chess.com"]